[Event "Irish New Year Events-IM1 2020"]
[Site "Dublin"]
[Date "2020.01.06"]
[Round "9.9"]
[White "Ahlander, Bjorn"]
[Black "Delaney, Killian"]
[Result "1/2-1/2"]
[ECO "D07"]
[WhiteElo "2418"]
[BlackElo "2278"]
[Annotator "RC"]
[PlyCount "122"]
[EventDate "2020.01.02"]
[EventType "tourn"]
[EventCountry "IRL"]
[SourceTitle "playchess.com"]
[Source "ChessBase"]
[SourceQuality "1"]
[TimeControl "40/5400+30:1800+30"]

1. d4 {[%emt 0:00:00]} d5 {[%emt 0:00:03]} 2. c4 {[%emt 0:00:00]} Nc6 {[%emt 0:00:07]} 3. Nc3 {[%emt 0:00:08]} Nf6 {[%emt 0:00:07]} 4. Nf3 {[%emt 0:00:19]} dxc4 {[%emt 0:00:09]} 5. d5 {[%emt 0:00:40]} Na5 {[%emt 0:00:09]} 6. Qa4+ {[%emt 0:01:16]} c6 {[%emt 0:00:08]} 7. b4 {[%emt 0:00:28]} b5 {[%emt 0:01:20]} 8. Qxa5 {[%emt 0:01:38]} Qxa5 {[%emt 0:00:12]} 9. bxa5 {[%emt 0:00:04]} b4 {[%emt 0:00:11]} 10. e4 {[%emt 0:15:10]} bxc3 {[%emt 0:01:41]} 11. Bxc4 {[%emt 0:00:29]} Nxe4 {[%emt 0:12:36]} 12. O-O {[%emt 0:00:47]} Nd6 {[%emt 0:00:32]} 13. Bb3 {[%emt 0:00:45]} cxd5 {[%emt 0:02:24]} 14. Bxd5 {[%emt 0:01:05]} Bb7 {[%emt 0:00:11]} 15. Bxb7 {[%emt 0:12:38]} Nxb7 {[%emt 0:00:10]} 16. Be3 {[%emt 0:00:28]} e6 {[%emt 0:10:02]} 17. Rfc1 {[%emt 0:05:27]} Ba3 {[%emt 0:01:06]} 18. Rc2 {[%emt 0:06:03]} Bb2 {[%emt 0:00:41]} 19. Rb1 {[%emt 0:01:10]} O-O {[%emt 0:07:47]} 20. Bc1 {[%emt 0:04:18]} Nxa5 {[%emt 0:01:49]} 21. Bxb2 {[%emt 0:01:10]} cxb2 {[%emt 0:00:06]} 22. Rbxb2 {[%emt 0:01:05]} Rfc8 {[%emt 0:02:39]} 23. g3 {[%emt 0:00:44]} h6 {[%emt 0:11:39]} 24. Ne5 {[%emt 0:02:21]} f6 {[%emt 0:01:54]} 25. Nd3 {[%emt 0:04:07]} e5 {[%emt 0:00:33]} 26. h4 {[%emt 0:02:01]} Rxc2 {[%emt 0:05:51]} 27. Rxc2 {[%emt 0:00:03]} Rd8 {[%emt 0:00:07]} 28. Rc3 {[%emt 0:06:04]} Rd4 {[%emt 0:02:27]} 29. Nb2 {[%emt 0:06:53]} Rd2 {[%emt 0:02:19]} 30. Ra3 {[%emt 0:00:40]} Nc6 {[%emt 0:12:27]} 31. Nc4 {[%emt 0:00:09]} Rd5 {[%emt 0:03:28]} 32. Ra6 {[%emt 0:05:22]} Rc5 {[%emt 0:00:16]} 33. Nd6 {[%emt 0:01:05]} h5 {[%emt 0:04:06]} 34. Kg2 {[%emt 0:00:34]} Rc2 {[%emt 0:00:25]} 35. Nc8 {[%emt 0:04:42]} Nb4 {[%emt 0:01:11]} 36. Ne7+ {[%emt 0:00:44]} Kf7 {[%emt 0:01:26]} 37. Rxa7 {[%emt 0:00:43]} Rxa2 {[%emt 0:00:10]} 38. Rc7 {[%emt 0:03:10]} Nd3 {[%emt 0:00:55]} 39. Kf3 {[%emt 0:00:18]} Ke6 {[%emt 0:01:42]} 40. Nc8 {[%emt 0:05:17]} Nxf2 {[%emt 0:06:47]} 41. Rxg7 {[%emt 0:30:49]} Ng4 {[%emt 0:30:43]} 42. Re7+ {[%emt 0:00:59]} Kd5 {[%emt 0:00:15]} 43. Rd7+ {[%emt 0:02:33]} Kc6 {[%emt 0:00:43]} 44. Rf7 {[%emt 0:00:14]} Rf2+ {[%emt 0:02:31]} 45. Ke4 {[%emt 0:00:04]} Re2+ {[%emt 0:00:07]} 46. Kf3 {[%emt 0:00:38]} Re3+ {[%emt 0:00:08]} 47. Kg2 {[%emt 0:00:02]} e4 {[%emt 0:00:03]} 48. Ne7+ {[%emt 0:01:02]} Kd6 {[%emt 0:01:16]} 49. Rh7 {[%emt 0:01:27]} Re2+ {[%emt 0:00:09]} 50. Kg1 {[%emt 0:00:09]} e3 {[%emt 0:01:19]} 51. Nf5+ {[%emt 0:00:25]} Ke5 {[%emt 0:00:18]} 52. Rxh5 {[%emt 0:01:40]} Ke4 {[%emt 0:00:13]} 53. Nd6+ {[%emt 0:00:51]} Kf3 {[%emt 0:00:12]} 54. Rf5+ {[%emt 0:00:29]} Kxg3 {[%emt 0:00:17]} 55. Ne4+ {[%emt 0:00:04]} Kxh4 {[%emt 0:02:38]} 56. Nxf6 {[%emt 0:00:39]} Nxf6 {[%emt 0:02:35]} 57. Rxf6 {[%emt 0:00:15]} Re1+ {[%emt 0:00:11]} 58. Kg2 {[%emt 0:00:52]} Kg4 {[%emt 0:00:20]} 59. Rb6 {[%emt 0:01:39]} e2 {[%emt 0:01:25]} 60. Rb4+ {[%emt 0:00:24]} Kf5 {[%emt 0:00:11]} 61. Kf2 {[%emt 0:00:15]} Ke5 {[%emt 0:03:03]} 1/2-1/2

[Event "Irish New Year Events-IM1 2020"]
[Site "Dublin"]
[Date "2020.01.06"]
[Round "9.10"]
[White "Venkatesan, Kavin"]
[Black "Baker, Chris W"]
[Result "1/2-1/2"]
[ECO "D07"]
[WhiteElo "1815"]
[BlackElo "2225"]
[Annotator "ChessBase"]
[PlyCount "37"]
[EventDate "2020.01.02"]
[EventType "tourn"]
[EventCountry "IRL"]
[SourceTitle "playchess.com"]
[Source "ChessBase"]
[SourceQuality "1"]
[TimeControl "40/5400+30:1800+30"]

1. d4 {[%emt 0:00:00]} d5 {[%emt 0:00:00]} 2. c4 {[%emt 0:00:00]} Nc6 {[%emt 0:00:00]} 3. e3 {[%emt 0:01:31]} dxc4 {[%emt 0:08:16]} 4. Bxc4 {[%emt 0:00:22]} e5 {[%emt 0:01:16]} 5. d5 {[%emt 0:04:06]} Nce7 {[%emt 0:01:22]} 6. Nc3 {[%emt 0:07:44]} Ng6 {[%emt 0:02:39]} 7. Nge2 {[%emt 0:00:57]} Nf6 {[%emt 0:04:20]} 8. O-O {[%emt 0:01:13]} Bd6 {[%emt 0:01:19]} 9. Ng3 {[%emt 0:06:11]} O-O {[%emt 0:02:43]} 10. e4 {[%emt 0:00:10]} a6 {[%emt 0:03:06]} 11. a4 {[%emt 0:00:43]} Kh8 {[%emt 0:03:47]} 12. b3 {[%emt 0:07:22]} Qe7 {[%emt 0:12:13]} 13. Qc2 {[%emt 0:09:48]} Nf4 {[%emt 0:03:51]} 14. f3 {[%emt 0:06:46]} N6h5 {[%emt 0:05:23]} 15. Bxf4 {[%emt 0:04:55]} Nxf4 {[%emt 0:01:08]} 16. Nce2 {[%emt 0:03:01]} Qf6 {[%emt 0:05:51]} 17. Kh1 {[%emt 0:02:31]} g6 {[%emt 0:02:55]} 18. Qb2 {[%emt 0:05:46]} Kg7 {[%emt 0:01:55]} 19. Rae1 {[%emt 0:04:29]} 1/2-1/2